lending/lending_fUSD_20241115
["ID","MTS","AMOUNT","RATE_DAILY","PERIOD"]
[342321845,1731706233212,-1049414.56287202,0.0001,2]
[342321846,1731706233224,-1983.52801426,0.0001,2]
[342321847,1731706233235,-1345994.61228405,0.0001,2]
[342321848,1731706233252,-18238.8,0.0001,2]
[342321849,1731706233264,-6286.67256418,0.0001,2]
[342321850,1731706233276,-569.07408483,0.0001,2]
[342321851,1731706233322,-49985.493141,0.0001,2]
[342321852,1731706233334,-189372.41646588,0.0001,2]
[342321853,1731706233346,-86789.97334866,0.0001,2]
[342321854,1731706233557,280.01,8.178e-05,2]
[342321858,1731706237510,-263.15334946,9.815e-05,2]
[342321859,1731706237521,-895.84665054,9.815e-05,2]
[342321860,1731706237531,-5068008.77148426,0.0001,2]
[342321861,1731706237696,-10620.54655105,0.0001,2]
[342321862,1731706237761,-2437.9,0.0001,2]
[342321863,1731706237772,-762.01199961,0.0001,2]
[342321864,1731706237783,-5444.17015251,0.0001,2]
[342321865,1731706237885,-35376.75832964,0.0001,2]
[342321872,1731706239399,-1102.02224015,9.8e-05,2]
[342321873,1731706239409,-20566.97775985,0.0001,2]
[342321874,1731706239492,-454.12612398,0.0001,2]
[342321875,1731706239519,-10735.37630367,0.0001,2]
[342321876,1731706239530,-515.15467415,0.0001,2]
[342321877,1731706239602,-777.49688397,0.0001,2]
[342321878,1731706239613,-8994.81314791,0.0001,2]
[342321879,1731706239636,-3652.05449545,0.0001,2]
[342321880,1731706239648,-309.09999999,0.0001,2]
[342321881,1731706239658,-823.98181157,0.0001,2]
[342321890,1731706242484,-10012.31664339,9.815e-05,2]
[342321891,1731706242495,-1255.77633919,9.815e-05,2]
[342321892,1731706242506,-2098.38059435,9.815e-05,2]
[342321893,1731706242517,-270.52642307,9.815e-05,2]
[342321894,1731706242527,-2818.53224202,0.0001,2]
[342321895,1731706242538,-1259.68500015,0.0001,2]
[342321896,1731706242599,-10838.838325,0.0001,2]
[342321897,1731706242661,-680.05553384,0.0001,2]
[342321898,1731706242674,-1616.91548483,0.0001,2]
[342321899,1731706242723,-3258.52100198,0.0001,2]
[342321900,1731706242786,-8519.84340487,0.0001,2]
[342321901,1731706242798,-1254.39402099,0.0001,2]
[342321902,1731706242809,-2983.17500035,0.0001,2]
[342321903,1731706242822,-6727.25361811,0.0001,2]
[342321904,1731706242834,-898.85618839,0.0001,2]
[342321905,1731706242845,-387.17277192,0.0001,2]
[342321907,1731706242856,-22583.99999998,0.0001,2]
[342321908,1731706242867,-4331.0,0.0001,2]
[342321918,1731706245452,-282.78234949,0.0001,2]
[342321919,1731706245517,-846.67,0.0001,2]
[342321920,1731706245529,-3581.01432309,0.0001,2]
[342321921,1731706245581,-13456.1193488,0.0001,2]
[342321922,1731706245593,-999.495,0.0001,2]
[342321923,1731706245769,-150.0,9.768e-05,2]
[342321924,1731706245779,-638.48112135,0.0001,2]
[342321925,1731706246156,-726.69969633,0.0001,2]
[342321927,1731706406315,500.0,0.00025,120]
[342321928,1731706803060,957.49,8.219e-05,2]
[342321932,1731707007018,500.0,0.00025,120]
[342321955,1731707431653,-250.0,8.982e-05,2]
[342321957,1731707431662,-1500.0,8.992e-05,2]
[342321958,1731707431671,-150.0,8.992e-05,2]
[342321959,1731707431680,-748.90724,9e-05,2]
[342321960,1731707431781,-4444.7217,9e-05,2]
[342321961,1731707431848,-1693.57969797,9e-05,2]
[342321962,1731707431859,-309.01,9e-05,2]
[342321963,1731707431871,-23819.9702445,9e-05,2]
[342321964,1731707431880,-185.33,9.145e-05,2]
[342321965,1731707431890,-154.67,9.145e-05,2]
[342321966,1731707431899,-221.32,9.148e-05,2]
[342321967,1731707431909,-1000.0,9.265e-05,2]
[342321968,1731707431919,-231.47,9.407e-05,2]
[342321969,1731707431928,-150.0,9.507e-05,2]
[342321970,1731707431938,-800.0,9.534e-05,2]
[342321971,1731707431948,-1500.0,9.534e-05,2]
[342321972,1731707431957,-150.0,9.763e-05,2]
[342321973,1731707431967,-2500.382,9.78e-05,2]
[342321974,1731707431976,-150.0,9.815e-05,2]
[342321975,1731707431985,-150.0,9.815e-05,2]
[342321976,1731707431994,-166.015,9.815e-05,2]
[342321977,1731707432003,-150.449,9.815e-05,2]
[342321978,1731707432012,-290.667,9.815e-05,2]
[342321979,1731707432022,-170.108,9.815e-05,2]
[342321980,1731707432031,-166.0,9.815e-05,2]
[342321981,1731707432040,-150.0,9.87e-05,2]
[342321982,1731707432049,-150.0,9.894e-05,2]
[342321983,1731707432058,-2103.035,9.899e-05,2]
[342321984,1731707432067,-500.0,9.899e-05,2]
[342321985,1731707432076,-150.0,9.912e-05,2]
[342321986,1731707432085,-3145.7217,9.962e-05,2]
[342321987,1731707432094,-150.0,9.971e-05,2]
[342321988,1731707432103,-1500.0,9.972e-05,2]
[342321989,1731707432111,-150.0,9.972e-05,2]
[342321990,1731707432122,-500.0,9.973e-05,2]
[342321991,1731707432134,-500.0,9.973e-05,2]
[342321992,1731707432143,-500.0,9.973e-05,2]
[342321993,1731707432153,-586.78574312,9.973e-05,2]
[342321994,1731707432162,-1222.876,9.998e-05,2]
[342321995,1731707432173,-2308.18908169,9.999e-05,2]
[342321996,1731707432182,-6635.52320993,9.999e-05,2]
[342321997,1731707432193,-1864.47679007,9.999e-05,2]
[342321998,1731707432203,-8500.0,9.999e-05,2]
[342321999,1731707432212,-500.0,9.999e-05,2]
[342322000,1731707432221,-500.0,9.999e-05,2]
[342322001,1731707432230,-500.0,9.999e-05,2]
[342322002,1731707432240,-500.0,9.999e-05,2]
[342322003,1731707432249,-500.0,9.999e-05,2]
[342322004,1731707432259,-500.0,9.999e-05,2]
[342322005,1731707432269,-500.0,9.999e-05,2]
[342322006,1731707432278,-500.0,9.999e-05,2]
[342322007,1731707432288,-500.0,9.999e-05,2]
[342322008,1731707432297,-500.0,9.999e-05,2]
[342322009,1731707432306,-500.0,9.999e-05,2]
[342322010,1731707432316,-500.0,9.999e-05,2]
[342322011,1731707432325,-500.0,9.999e-05,2]
[342322012,1731707432336,-500.0,9.999e-05,2]
[342322013,1731707432345,-622.55202761,9.999e-05,2]
[342322014,1731707432354,-626.49,9.999e-05,2]
[342322015,1731707432363,-500.0,9.999e-05,2]
[342322016,1731707432373,-500.0,9.999e-05,2]
[342322017,1731707432383,-526.25532394,9.999e-05,2]
[342322018,1731707432392,-500.0,9.999e-05,2]
[342322019,1731707432401,-610.44705806,9.999e-05,2]
[342322020,1731707432410,-500.0,9.999e-05,2]
[342322021,1731707432420,-500.0,9.999e-05,2]
[342322022,1731707432429,-500.0,9.999e-05,2]
[342322023,1731707432439,-500.0,9.999e-05,2]
[342322024,1731707432449,-500.0,9.999e-05,2]
[342322025,1731707432459,-500.0,9.999e-05,2]
[342322026,1731707432469,-500.0,9.999e-05,2]
[342322027,1731707432478,-238.35,9.999e-05,2]
[342322028,1731707432488,-273.32439031,9.999e-05,2]
[342322029,1731707432498,-500.0,9.999e-05,2]
[342322030,1731707432507,-500.0,9.999e-05,2]
[342322031,1731707432517,-500.0,9.999e-05,2]
[342322032,1731707432527,-500.0,9.999e-05,2]
[342322033,1731707432536,-500.0,9.999e-05,2]
[342322034,1731707432546,-500.0,9.999e-05,2]
[342322035,1731707432556,-500.0,9.999e-05,2]
[342322036,1731707432565,-500.0,9.999e-05,2]
[342322037,1731707432575,-500.0,9.999e-05,2]
[342322038,1731707432584,-500.0,9.999e-05,2]
[342322039,1731707432593,-500.0,9.999e-05,2]
[342322040,1731707432603,-500.0,9.999e-05,2]
[342322041,1731707432612,-500.0,9.999e-05,2]
[342322042,1731707432623,-500.0,9.999e-05,2]
[342322043,1731707432632,-500.0,9.999e-05,2]
[342322044,1731707432641,-194.43,9.999e-05,2]
[342322045,1731707432651,-64231.4497428,0.0001,2]
[342322046,1731707432671,-501884.4468058,0.0001,2]
[342322059,1731707437647,-1327.13555,0.0001,2]
[342322063,1731707437682,-54877.72074932,0.0001,2]
[342322064,1731707437715,-1563.15,0.0001,2]
[342322065,1731707437751,-1333.19958,0.0001,2]
[342322066,1731707437763,-1556.38637894,0.0001,2]
[342322067,1731707437785,-1180.33482069,0.0001,2]
[342322068,1731707437796,-2824.32655856,0.0001,2]
[342322069,1731707437909,-666.82,0.0001,2]
[342322070,1731707438033,-887.53665,0.0001,2]
[342322071,1731707438045,-263.61513304,0.0001,2]
[342322072,1731707438070,-1061.37020414,0.0001,2]
[342322074,1731707438081,-45679.54903239,0.0001,2]
[342322076,1731707438092,-13173.1647,0.0001,2]
[342322090,1731707439736,-1000.0,0.0001,2]
[342322091,1731707439748,-665.01529094,0.0001,2]
[342322092,1731707439759,-3085.2,0.0001,2]
[342322093,1731707439771,-989.665,0.0001,2]
[342322094,1731707439786,-1763.9622,0.0001,2]
[342322095,1731707439834,-4522.04143853,0.0001,2]
[342322096,1731707439983,-2725.0,0.0001,2]
[342322097,1731707439995,-1789.19958184,0.0001,2]
[342322104,1731707442698,-158.804,9.815e-05,2]
[342322106,1731707442707,-362.71076816,9.973e-05,2]
[342322107,1731707442735,-137.28923184,9.973e-05,2]
[342322108,1731707442744,-166617.08127665,0.0001,2]
[342322109,1731707442755,-853.46244109,0.0001,2]
[342322110,1731707442767,-590.159159,0.0001,2]
[342322111,1731707442779,-367.3295172,0.0001,2]
[342322112,1731707442791,-1025.02274,0.0001,2]
[342322113,1731707442807,-658.293164,0.0001,2]
[342322114,1731707442819,-2155.14039363,0.0001,2]
[342322115,1731707442831,-2693.66376782,0.0001,2]
[342322116,1731707442842,-22680.9355626,0.0001,2]
[342322117,1731707442854,-7410.79654098,0.0001,2]
[342322118,1731707442866,-3881.511711,0.0001,2]
[342322119,1731707442877,-7324.10657417,0.0001,2]
[342322120,1731707442890,-5007.93065369,0.0001,2]
[342322121,1731707442902,-34344.1914539,0.0001,2]
[342322122,1731707442914,-1915.06205,0.0001,2]
[342322123,1731707442926,-7736.20286,0.0001,2]
[342322124,1731707443148,-500.0,9.973e-05,2]
[342322125,1731707443157,-450.0,0.0001,2]
[342322126,1731707443184,-4768.55267689,0.0001,2]
[342322127,1731707443196,-2058.3541973,0.0001,2]
[342322128,1731707443209,-5951.19704466,0.0001,2]
[342322129,1731707443220,-6013.24000012,0.0001,2]
[342322130,1731707443231,-3182.28787589,0.0001,2]
[342322131,1731707443256,-2000.0,0.0001,2]
[342322132,1731707443267,-5633.10000002,0.0001,2]
[342322150,1731707445632,-248.7,9.815e-05,2]
[342322151,1731707445644,-1169.07224314,0.0001,2]
[342322152,1731707445655,-308936.31371875,0.0001,2]
[342322153,1731707445667,-697.51685667,0.0001,2]
[342322154,1731707445693,-22007.5,0.0001,2]
[342322155,1731707445900,-73268.62860287,0.0001,2]
[342322156,1731707445912,-176546.97506064,0.0001,2]
[342322157,1731707445933,-151.196,9.815e-05,2]
[342322158,1731707445943,-13660.38100823,0.0001,2]
[342322160,1731707546437,1006.95,8.219e-05,2]
[342322164,1731707738217,1201.0,0.00025,60]
[342322166,1731708204558,500.0,0.00025,120]
[342322167,1731708284781,956.6,8.219e-05,2]
[342322191,1731708631842,-784.14915639,8.551e-05,2]
[342322192,1731708631854,-1215.85084361,8.551e-05,2]
[342322193,1731708631866,-250.0,8.556e-05,2]
[342322194,1731708631875,-727.56,8.588e-05,2]
[342322195,1731708631884,-3548.48,8.719e-05,2]
[342322196,1731708631893,-250.0,8.851e-05,2]
[342322197,1731708631902,-1500.0,8.862e-05,2]
[342322198,1731708631911,-437.76,8.879e-05,2]
[342322199,1731708631921,-300.0,8.948e-05,2]
[342322200,1731708631930,-23900.0,8.949e-05,2]
[342322201,1731708632149,-1000.0,8.967e-05,2]
[342322202,1731708632158,-250.0,8.967e-05,2]
[342322203,1731708632167,-1744.01,8.998e-05,2]
[342322204,1731708632177,-150.0,9.04e-05,2]
[342322205,1731708632186,-763.46,9.041e-05,2]
[342322206,1731708632195,-432.81,9.041e-05,2]
[342322207,1731708632204,-432.81,9.041e-05,2]
[342322208,1731708632213,-763.46,9.041e-05,2]
[342322209,1731708632222,-432.27,9.041e-05,2]
[342322210,1731708632232,-762.53,9.041e-05,2]
[342322211,1731708632241,-180.62,9.061e-05,2]
[342322212,1731708632251,-159.89,9.065e-05,2]
[342322213,1731708632260,-432.63,9.141e-05,2]
[342322214,1731708632269,-150.0,9.178e-05,2]
[342322216,1731708632278,-150.0,9.178e-05,2]
[342322218,1731708632288,-150.0,9.178e-05,2]
[342322220,1731708632297,-150.0,9.178e-05,2]
[342322222,1731708632306,-150.0,9.178e-05,2]
[342322224,1731708632315,-150.0,9.178e-05,2]
[342322226,1731708632325,-150.0,9.178e-05,2]
[342322228,1731708632335,-150.0,9.178e-05,2]
[342322230,1731708632344,-150.0,9.178e-05,2]
[342322232,1731708632353,-167.01,9.236e-05,2]
[342322247,1731708632569,-150.0,9.278e-05,2]
[342322248,1731708632579,-150.0,9.278e-05,2]
[342322249,1731708632589,-208.68,9.278e-05,2]
[342322250,1731708632599,-150.0,9.278e-05,2]
[342322251,1731708632610,-150.0,9.278e-05,2]
[342322252,1731708632624,-150.0,9.278e-05,2]
[342322253,1731708632634,-150.0,9.278e-05,2]
[342322254,1731708632644,-150.0,9.278e-05,2]
[342322255,1731708632653,-800.0,9.534e-05,2]
[342322256,1731708632663,-200.0,9.6e-05,2]
[342322257,1731708632672,-5082.14460664,9.66e-05,2]
[342322258,1731708632682,-2948.44,9.67e-05,2]
[342322259,1731708632692,-1000.0,9.698e-05,2]
[342322260,1731708632702,-178.8752,9.699e-05,2]
[342322261,1731708632712,-2020.2892,9.699e-05,2]
[342322262,1731708632722,-1000.0,9.699e-05,2]
[342322263,1731708632731,-7342.1071,9.699e-05,2]
[342322264,1731708632741,-2500.0,9.699e-05,2]
[342322265,1731708632750,-762.89408807,9.699e-05,2]
[342322266,1731708632761,-915.29022052,9.699e-05,2]
[342322267,1731708632774,-1952.48759141,9.699e-05,2]
[342322268,1731708632783,-150.0,9.735e-05,2]
[342322269,1731708632792,-5931.0,9.735e-05,2]
[342322270,1731708632801,-13637.0,9.735e-05,2]
[342322271,1731708632811,-978.301,9.789e-05,2]
[342322272,1731708632819,-500.0,9.798e-05,2]
[342322273,1731708632828,-408.1826977,9.798e-05,2]
[342322274,1731708632837,-500.0,9.798e-05,2]
[342322275,1731708632846,-450.13241829,9.798e-05,2]
[342322276,1731708632856,-500.0,9.798e-05,2]
[342322277,1731708632865,-500.0,9.798e-05,2]
[342322278,1731708632875,-500.0,9.798e-05,2]
[342322279,1731708632884,-480.6114092,9.798e-05,2]
[342322280,1731708632894,-374.79855344,9.798e-05,2]
[342322281,1731708632903,-500.0,9.798e-05,2]
[342322282,1731708632913,-152.7349957,9.798e-05,2]
[342322283,1731708632934,-68.6450043,9.798e-05,2]
[342322284,1731708632943,-500.0,9.798e-05,2]
[342322285,1731708632952,-500.0,9.798e-05,2]
[342322286,1731708632961,-581.54,9.798e-05,2]
[342322287,1731708632971,-500.0,9.798e-05,2]
[342322288,1731708632980,-440.29733,9.798e-05,2]
[342322289,1731708632990,-500.0,9.798e-05,2]
[342322290,1731708632999,-769.08,9.798e-05,2]
[342322291,1731708633010,-500.0,9.798e-05,2]
[342322292,1731708633019,-500.0,9.798e-05,2]
[342322293,1731708633028,-500.0,9.798e-05,2]
[342322294,1731708633038,-500.0,9.798e-05,2]
[342322295,1731708633047,-500.0,9.798e-05,2]
[342322296,1731708633057,-500.0,9.798e-05,2]
[342322297,1731708633067,-500.0,9.798e-05,2]
[342322298,1731708633077,-500.0,9.798e-05,2]
[342322299,1731708633086,-500.0,9.798e-05,2]
[342322300,1731708633096,-500.0,9.798e-05,2]
[342322301,1731708633107,-739.12125652,9.799e-05,2]
[342322302,1731708633116,-19282.868,9.799e-05,2]
[342322303,1731708633126,-498.8326,9.799e-05,2]
[342322304,1731708633135,-500.0,9.799e-05,2]
[342322305,1731708633145,-220180.63853434,9.799e-05,2]
[342322306,1731708633157,-24819.36146566,9.799e-05,2]
[342322307,1731708633166,-1136.92449028,9.8e-05,2]
[342322308,1731708633175,-1030.1836486,9.8e-05,2]
[342322309,1731708633185,-1133.394838,9.8e-05,2]
[342322310,1731708633194,-203.369,9.815e-05,2]
[342322311,1731708633204,-206.446,9.815e-05,2]
[342322312,1731708633213,-153.181,9.815e-05,2]
[342322313,1731708633222,-563.0,9.815e-05,2]
[342322314,1731708633231,-1255.0,9.815e-05,2]
[342322315,1731708633240,-1992.0,9.815e-05,2]
[342322316,1731708633250,-150.0,9.815e-05,2]
[342322317,1731708633259,-628.0,9.815e-05,2]
[342322318,1731708633268,-1924.0,9.815e-05,2]
[342322319,1731708633278,-559.0,9.815e-05,2]
[342322320,1731708633287,-814.0,9.815e-05,2]
[342322321,1731708633296,-1259.0,9.815e-05,2]
[342322322,1731708633305,-3745.0,9.815e-05,2]
[342322323,1731708633315,-922.0,9.815e-05,2]
[342322324,1731708633324,-3488.0,9.815e-05,2]
[342322325,1731708633333,-92476.0,9.863e-05,2]
[342322326,1731708633342,-180.72930077,9.873e-05,2]
[342322327,1731708633352,-504.35204938,9.873e-05,2]
[342322328,1731708633364,-500.0,9.873e-05,2]
[342322329,1731708633373,-500.0,9.873e-05,2]
[342322330,1731708633383,-231.87,9.89e-05,2]
[342322331,1731708633392,-150.0,9.89e-05,2]
[342322332,1731708633402,-150.0,9.89e-05,2]
[342322333,1731708633412,-150.0,9.89e-05,2]
[342322334,1731708633421,-150.0,9.89e-05,2]
[342322335,1731708633431,-500.0,9.896e-05,2]
[342322336,1731708633440,-500.0,9.896e-05,2]
[342322337,1731708633450,-500.0,9.897e-05,2]
[342322338,1731708633459,-360.54,9.897e-05,2]
[342322339,1731708633468,-769.08,9.897e-05,2]
[342322340,1731708633478,-500.0,9.897e-05,2]
[342322341,1731708633487,-500.0,9.897e-05,2]
[342322342,1731708633496,-500.0,9.897e-05,2]
[342322343,1731708633505,-500.0,9.897e-05,2]
[342322344,1731708633514,-500.0,9.897e-05,2]
[342322345,1731708633527,-481.25,9.898e-05,2]
[342322346,1731708633537,-463.8,9.898e-05,2]
[342322347,1731708633547,-197.68,9.898e-05,2]
[342322348,1731708633556,-500.0,9.898e-05,2]
[342322349,1731708633566,-500.0,9.898e-05,2]
[342322350,1731708633575,-353.64,9.898e-05,2]
[342322351,1731708633585,-154.6068885,9.898e-05,2]
[342322352,1731708633595,-500.0,9.898e-05,2]
[342322353,1731708633607,-385.51982512,9.898e-05,2]
[342322354,1731708633616,-769.08,9.898e-05,2]
[342322355,1731708633626,-769.08,9.898e-05,2]
[342322356,1731708633635,-769.08,9.898e-05,2]
[342322357,1731708633644,-769.08,9.898e-05,2]
[342322358,1731708633654,-769.08,9.898e-05,2]
[342322359,1731708633663,-769.08,9.898e-05,2]
[342322360,1731708633673,-769.08,9.898e-05,2]
[342322361,1731708633682,-769.08,9.898e-05,2]
[342322362,1731708633692,-769.08,9.898e-05,2]
[342322363,1731708633701,-769.08,9.898e-05,2]
[342322364,1731708633710,-769.08,9.898e-05,2]
[342322365,1731708633719,-769.08,9.898e-05,2]
[342322366,1731708633728,-769.08,9.898e-05,2]
[342322367,1731708633738,-769.08,9.898e-05,2]
[342322368,1731708633747,-769.08,9.898e-05,2]
[342322369,1731708633756,-769.08,9.898e-05,2]
[342322370,1731708633765,-769.08,9.898e-05,2]
[342322371,1731708633774,-769.08,9.898e-05,2]
[342322372,1731708633784,-769.08,9.898e-05,2]
[342322373,1731708633793,-769.08,9.898e-05,2]
[342322374,1731708633803,-769.08,9.898e-05,2]
[342322375,1731708633813,-769.26825198,9.898e-05,2]
[342322376,1731708633822,-511.15,9.898e-05,2]
[342322377,1731708633832,-297.79,9.898e-05,2]
[342322378,1731708633841,-500.0,9.898e-05,2]
[342322379,1731708633851,-500.0,9.898e-05,2]
[342322380,1731708633862,-500.0,9.898e-05,2]
[342322381,1731708633871,-567.92,9.898e-05,2]
[342322382,1731708633880,-328.38,9.898e-05,2]
[342322383,1731708633890,-500.0,9.898e-05,2]
[342322384,1731708633900,-500.0,9.898e-05,2]
[342322385,1731708633909,-500.0,9.898e-05,2]
[342322386,1731708633919,-500.0,9.898e-05,2]
[342322387,1731708633928,-500.0,9.898e-05,2]
[342322388,1731708633937,-500.0,9.898e-05,2]
[342322389,1731708633946,-449.58194455,9.898e-05,2]
[342322390,1731708633956,-500.0,9.898e-05,2]
[342322391,1731708633965,-500.0,9.898e-05,2]
[342322392,1731708633975,-500.0,9.898e-05,2]
[342322393,1731708633985,-500.0,9.898e-05,2]
[342322394,1731708633995,-500.0,9.898e-05,2]
[342322395,1731708634004,-332.46160325,9.898e-05,2]
[342322396,1731708634013,-500.0,9.898e-05,2]
[342322397,1731708634023,-500.0,9.898e-05,2]
[342322398,1731708634032,-500.0,9.898e-05,2]
[342322399,1731708634042,-577.76,9.898e-05,2]
[342322400,1731708634052,-41981.73854795,9.899e-05,2]
[342322401,1731708634064,-4057.61514411,9.899e-05,2]
[342322402,1731708634076,-1477.73295,9.899e-05,2]
[342322403,1731708634087,-314.49158686,9.899e-05,2]
[342322404,1731708634098,-4803.51123965,9.899e-05,2]
[342322405,1731708634111,-43010.79713,9.899e-05,2]
[342322406,1731708634122,-2175.883476,9.899e-05,2]
[342322407,1731708634134,-131148.71624549,9.899e-05,2]
[342322408,1731708634170,-412.64621076,9.899e-05,2]
[342322409,1731708634182,-1383.74212666,9.899e-05,2]
[342322410,1731708634194,-670.21068993,9.899e-05,2]
[342322411,1731708634208,-578.0878976,9.899e-05,2]
[342322412,1731708634222,-3684.64521271,9.899e-05,2]
[342322413,1731708634234,-10552.6900996,9.899e-05,2]
[342322414,1731708634247,-15517.81768645,9.899e-05,2]
[342322415,1731708634261,-9429.28866494,9.899e-05,2]
[342322416,1731708634272,-32462.96998684,9.899e-05,2]
[342322417,1731708634285,-567.79180709,9.899e-05,2]
[342322418,1731708634297,-353.16943662,9.899e-05,2]
[342322419,1731708634308,-1053.94298775,9.899e-05,2]
[342322420,1731708634320,-535.511,9.899e-05,2]
[342322421,1731708634332,-3922.15892844,9.899e-05,2]
[342322432,1731708637856,-1390.32729566,9.402e-05,2]
[342322434,1731708637868,-109.67270434,9.402e-05,2]
[342322436,1731708637878,-500.0,9.873e-05,2]
[342322437,1731708637887,-56.56729566,9.899e-05,2]
[342322438,1731708637898,-878.55,9.899e-05,2]
[342322439,1731708637909,-4867.04457796,9.899e-05,2]
[342322440,1731708637920,-1154.33727596,9.899e-05,2]
[342322441,1731708637930,-2255.0,9.899e-05,2]
[342322442,1731708638050,-9764.9664,9.899e-05,2]
[342322443,1731708638178,-4451.5,9.899e-05,2]
[342322444,1731708638190,-274.5000006,9.899e-05,2]
[342322445,1731708638201,-2715.04245996,9.899e-05,2]
[342322446,1731708638394,-15766.70600567,9.899e-05,2]
[342322448,1731708638405,-8102.50606527,9.899e-05,2]
[342322449,1731708638417,-2635.2175115,9.899e-05,2]
[342322471,1731708639840,-6774.12619057,9.899e-05,2]
[342322472,1731708639852,-9280.50000004,9.899e-05,2]
[342322473,1731708639887,-4471.9675,9.899e-05,2]
[342322474,1731708639934,-31247.59818323,9.899e-05,2]
[342322475,1731708640077,-25692.61221,9.899e-05,2]
[342322476,1731708640089,-423.52125652,9.899e-05,2]
[342322477,1731708640100,-315.6,9.899e-05,2]
[342322478,1731708640124,-773.545,9.899e-05,2]
[342322479,1731708640135,-3217.80982822,9.899e-05,2]
[342322480,1731708640169,-87265.31041452,9.899e-05,2]
[342322489,1731708642913,-10715.01296668,9.899e-05,2]
[342322490,1731708642926,-6653.86202215,9.899e-05,2]
[342322491,1731708642939,-22891.0999701,9.899e-05,2]
[342322492,1731708642953,-4291.0344569,9.899e-05,2]
[342322493,1731708643073,-1102.29648665,9.899e-05,2]
[342322494,1731708643099,-4302.45407123,9.899e-05,2]
[342322502,1731708646357,-150.0,9.178e-05,2]
[342322504,1731708646369,-5441.84887929,9.899e-05,2]
[342322505,1731708646381,-16764.8825464,9.899e-05,2]
[342322506,1731708646392,-60806.3124745,9.899e-05,2]
[342322507,1731708646404,-390.66597496,9.899e-05,2]
[342322508,1731708646416,-301.67149999,9.899e-05,2]
[342322509,1731708646427,-31593.50718212,9.899e-05,2]
[342322510,1731708646522,-28176.67007593,9.899e-05,2]
[342322511,1731708646534,-337.32540763,9.899e-05,2]
[342322512,1731708646546,-251.1639998,9.899e-05,2]
[342322513,1731708646557,-761749.22551703,9.899e-05,2]
[342322514,1731708646568,-13665.9502,9.899e-05,2]
[342322515,1731708646579,-36573.69407904,9.899e-05,2]
[342322516,1731708646591,-275.5313463,9.899e-05,2]
[342322518,1731708805864,500.0,0.00025,120]
[342322519,1731708812847,500.0,0.00025,120]
[342322520,1731708816389,200.0,0.00025,120]
[342322521,1731709194750,-500.0,8.663e-05,2]
[342322522,1731709194775,-161.3,8.707e-05,2]
[342322523,1731709194798,-168.52,8.888e-05,2]
[342322524,1731709194821,-161.69,8.898e-05,2]
[342322525,1731709194843,-1000.0,8.93e-05,2]
[342322526,1731709194865,-272.73,8.94e-05,2]
[342322527,1731709194887,-312.81,8.944e-05,2]
[342322528,1731709194911,-600.0,9e-05,3]
[342322529,1731709194934,-1300.0,9.1e-05,3]
[342322530,1731709194956,-300.0,9.133e-05,2]
[342322531,1731709194979,-23900.0,9.134e-05,2]
[342322532,1731709195001,-2000.0,9.2e-05,3]
[342322533,1731709195028,-2700.0,9.3e-05,3]
[342322534,1731709195050,-3400.0,9.4e-05,3]
[342322535,1731709195072,-250.0,9.481e-05,2]
[342322536,1731709195094,-600.0,9.5e-05,3]
[342322537,1731709195115,-1863.3402,9.57e-05,2]
[342322538,1731709195137,-245.00911,9.586e-05,2]
[342322539,1731709195159,-150.0,9.598e-05,2]
[342322540,1731709195181,-864.5914,9.599e-05,2]
[342322541,1731709195203,-1000.0,9.599e-05,2]
[342322542,1731709195224,-1000.0,9.599e-05,2]
[342322543,1731709195250,-100000.0,9.599e-05,2]
[342322544,1731709195274,-4505.9501,9.599e-05,2]
[342322545,1731709195296,-2500.0,9.599e-05,2]
[342322546,1731709195318,-600.0,9.6e-05,3]
[342322547,1731709195340,-150.99,9.67e-05,2]
[342322548,1731709195361,-6346.95,9.67e-05,2]
[342322549,1731709195383,-973.6,9.67e-05,2]
[342322550,1731709195405,-23327.53,9.67e-05,2]
[342322551,1731709195426,-2246.77,9.67e-05,2]
[342322552,1731709195449,-552.4858102,9.698e-05,2]
[342322553,1731709195471,-178.22423562,9.698e-05,2]
[342322554,1731709195494,-500.0,9.698e-05,2]